bitfinex-derivatives/quotes_BNBF0:USTF0_20241230
["timestamp","ask_amount","ask_price","bid_price","bid_amount"]
[1735518442802,1.07072757,696.0,694.64,1.35696275]
[1735518443003,0.26460538,695.99,694.64,1.35696275]
[1735518443806,1.07072757,695.97,694.67,1.06904383]
[1735518444003,0.26461309,695.96,694.67,1.06904383]
[1735518444304,1.07072757,695.97,694.68,0.28790234]
[1735518444700,1.07072757,695.96,694.68,0.28790234]
[1735518445906,1.07072757,695.99,694.68,0.28790234]
[1735518447010,1.07072757,696.01,694.68,0.28790234]
[1735518448209,1.07072757,696.04,694.68,0.28790234]
[1735518449510,1.07072757,696.14,694.68,0.28790234]
[1735518451111,1.07072757,696.16,694.68,0.28790234]
[1735518451605,0.26459536,696.15,694.68,0.28790234]
[1735518452004,1.07072757,696.16,694.68,0.28790234]
[1735518452203,0.26459575,696.15,694.68,0.28790234]
[1735518452914,1.33532332,696.15,694.68,0.28790234]
[1735518453210,0.26459575,696.14,694.68,0.28790234]
[1735518453709,1.07072757,696.11,694.68,0.28790234]
[1735518454812,1.07072757,696.14,694.68,0.28790234]
[1735518455004,0.26460827,696.13,694.68,0.28790234]
[1735518455612,1.07072757,696.14,694.68,0.28790234]
[1735518455811,1.07072757,696.13,694.68,0.28790234]
[1735518456013,0.28730678,696.12,694.68,0.28790234]
[1735518456512,0.26464542,696.11,694.68,0.28790234]
[1735518457013,0.55196411,696.1,694.68,0.28790234]
[1735518457212,0.26464907,696.09,694.68,0.28790234]
[1735518457411,0.28732329,696.08,694.68,0.28790234]
[1735518457814,0.26465505,696.07,694.68,0.28790234]
[1735518458012,1.07072757,696.05,694.68,0.28790234]
[1735518458313,0.26465505,696.04,694.68,0.28790234]
[1735518458506,1.35806324,696.05,694.68,0.28790234]
[1735518458907,1.07072757,695.97,694.68,1.35694617]
[1735518459314,0.28733567,696.05,694.68,0.28790234]
[1735518460317,1.07800584,696.01,694.69,1.07639236]
[1735518460515,1.07800584,696.01,694.7,0.28789405]
[1735518461417,1.07800584,696.02,694.72,1.07639236]
[1735518461816,1.07800584,696.02,694.72,1.36427812]
[1735518462515,1.07800584,696.03,694.73,1.07639236]
[1735518463618,1.07800584,696.03,694.74,0.28787747]
[1735518463817,1.07800584,696.04,694.74,0.28787747]
[1735518465821,1.36534151,696.05,694.74,0.28787747]
[1735518467022,0.28733567,696.05,694.74,0.28787747]
[1735518468123,1.36534151,696.05,694.74,0.28787747]
[1735518469123,1.07800584,696.04,694.74,0.28787747]
[1735518469822,1.36534151,696.05,694.86,1.07639236]
[1735518470821,0.28733567,696.05,694.83,1.07639236]
[1735518471017,0.28733567,696.05,694.84,0.28783604]
[1735518472020,1.07800584,696.04,694.84,0.28783604]
[1735518473623,1.07800584,696.02,694.84,0.28783604]
[1735518474422,0.28733567,696.05,694.84,1.3642284]
[1735518475222,1.07800584,696.0,694.87,1.07639236]
[1735518476018,1.07800584,696.02,694.88,1.07639236]
[1735518477226,1.07800584,696.03,694.87,1.07639236]
[1735518478123,1.07800584,696.04,694.86,1.07639236]
[1735518480526,0.28733567,696.05,694.85,1.07639236]
[1735518481527,0.28733567,696.05,694.84,0.28783604]
[1735518494142,1.07800584,696.03,694.84,0.28783604]
[1735518495242,1.07800584,696.02,694.84,0.28783604]
[1735518496347,0.28733567,696.05,694.84,0.28783604]
[1735518512958,0.26460346,696.04,694.84,0.28783604]
[1735518513358,0.28733567,696.05,694.84,0.28783604]
[1735518513561,0.26460439,696.04,694.84,0.28783604]
[1735518514059,1.07800584,696.02,694.84,0.28783604]
[1735518514355,0.26460439,696.01,694.84,0.28783604]
[1735518515458,0.26460439,696.0,694.84,0.28783604]
[1735518515651,0.26460439,695.99,694.84,0.28783604]
[1735518515856,0.26460439,695.98,694.84,0.28783604]
[1735518516052,1.07800584,696.02,694.84,0.28783604]
[1735518516355,0.26460344,696.01,694.84,0.28783604]
[1735518518555,0.26460344,696.0,694.84,0.28783604]
[1735518518759,1.36534151,696.05,694.84,0.28783604]
[1735518518954,0.26460503,696.04,694.84,0.28783604]
[1735518519357,1.34261087,696.04,694.84,0.28783604]
[1735518519556,0.26460503,696.03,694.84,0.28783604]
[1735518520470,1.07800584,696.02,694.84,0.28783604]
[1735518520664,0.26460503,696.01,694.84,0.28783604]
[1735518521265,1.34261087,696.01,694.84,0.28783604]
[1735518521459,1.07800584,696.01,694.84,0.28783604]
[1735518522161,1.07800584,696.03,694.84,0.28783604]
[1735518523169,1.07800584,696.04,694.84,0.28783604]
[1735518525270,1.36534151,696.05,694.84,0.28783604]
[1735518525867,0.26462323,696.04,694.84,0.28783604]
[1735518526065,0.26462976,696.03,694.84,0.28783604]
[1735518526265,1.36534151,696.05,694.84,0.28783604]
[1735518526266,1.07800584,696.04,694.84,0.28783604]
[1735518527672,0.28733567,696.05,694.84,0.28783604]
[1735518528674,1.36534151,696.05,694.84,0.28783604]
[1735518529066,0.26462873,696.04,694.84,0.28783604]
[1735518529771,1.07800584,696.02,694.84,0.28783604]
[1735518531471,0.26462737,696.01,694.84,0.28783604]
[1735518532172,1.07800584,695.98,694.84,0.28783604]
[1735518532374,0.26462737,695.97,694.84,0.28783604]
[1735518533174,1.07800584,695.98,694.84,0.28783604]
[1735518533372,0.2646198,695.97,694.84,0.28783604]
[1735518533575,1.07800584,695.97,694.84,0.28783604]
[1735518534776,0.28733567,696.05,694.84,0.28783604]
[1735518542782,1.07800584,696.21,694.84,0.28783604]
[1735518543979,1.07800584,696.3,694.87,1.07639236]
[1735518544177,0.26454799,696.29,694.88,0.28781947]
[1735518544384,0.55178462,696.29,694.88,0.28781947]
[1735518544675,0.26454799,696.28,694.88,0.28781947]
[1735518544881,1.07800584,696.24,694.88,0.28781947]
[1735518545584,1.07800584,696.22,694.88,0.28781947]
[1735518545785,0.55184896,696.21,694.88,0.28781947]
[1735518545985,0.26457932,696.2,694.88,0.28781947]
[1735518546785,1.07800584,696.18,694.88,0.28781947]
[1735518547979,1.07800584,696.19,694.88,0.28781947]
[1735518549185,1.36527548,696.21,694.88,0.28781947]
[1735518550989,0.28726964,696.21,694.88,0.28781947]
[1735518565201,1.07800584,696.53,694.88,0.28781947]
[1735518565594,0.26445527,696.52,694.88,0.28781947]
[1735518566000,0.26445527,696.52,694.89,1.07639236]
[1735518566202,0.26445527,696.51,694.89,1.07639236]
[1735518566402,0.5516053,696.5,694.89,1.07639236]
[1735518566598,0.26445527,696.49,694.89,1.07639236]
[1735518566797,0.28715003,696.5,694.89,1.07639236]
[1735518567202,0.28715003,696.5,694.88,0.28781947]
[1735518568103,0.26446574,696.49,694.88,1.36421183]
[1735518569199,0.28715828,696.48,694.88,1.36421183]
[1735518569401,0.26446574,696.47,694.88,0.28781947]
[1735518570504,0.26446574,696.47,694.88,1.36421183]
[1735518571600,0.26446574,696.47,694.88,0.28781947]
[1735518573400,0.28716652,696.46,694.88,0.28781947]
[1735518573602,0.26446574,696.45,694.88,1.36421183]
[1735518574107,0.28717477,696.44,694.88,1.36421183]
[1735518574307,0.26446574,696.43,694.88,1.36421183]
[1735518574510,1.07800584,696.37,694.94,1.07639236]
[1735518575008,1.07800584,696.37,694.95,0.28779048]
[1735518575710,0.28717477,696.44,694.95,0.28779048]
[1735518575911,0.26450969,696.43,694.95,0.28779048]
[1735518577611,0.26453798,696.42,694.95,0.28779048]
[1735518577910,0.26453798,696.41,694.95,0.28779048]
[1735518578111,0.28717477,696.44,694.95,0.28779048]
[1735518578112,0.26453798,696.4,694.95,0.28779048]
[1735518578411,0.26453798,696.39,694.95,0.28779048]
[1735518578609,0.26453798,696.38,694.95,0.28779048]
[1735518578808,0.28720364,696.37,694.95,0.28779048]
[1735518580007,0.26450776,696.36,694.95,0.28779048]
[1735518580406,0.28720364,696.37,694.95,0.28779048]
[1735518580808,0.26449308,696.36,694.95,0.28779048]
[1735518581512,0.28720364,696.37,694.95,0.28779048]
[1735518585711,0.26452283,696.36,694.95,0.28779048]
[1735518586114,0.28720364,696.37,694.95,0.28779048]
[1735518586810,1.07800584,696.35,694.95,0.28779048]
[1735518587915,1.07800584,696.34,694.95,0.28779048]
[1735518589111,1.07800584,696.32,694.95,0.28779048]
[1735518590011,1.07800584,696.31,694.95,0.28779048]
[1735518591112,1.07800584,696.3,694.95,0.28779048]
[1735518592420,1.07800584,696.26,694.95,0.28779048]
[1735518594217,1.07800584,696.3,694.98,1.07639236]
[1735518594620,1.07800584,696.3,694.99,0.28777392]
[1735518595018,1.07800584,696.29,694.99,0.28777392]
[1735518597323,1.36520948,696.37,694.99,0.28777392]
[1735518598223,1.07800584,696.35,694.99,0.28777392]
[1735518599222,1.07800584,696.36,694.99,0.28777392]
[1735518600425,1.07800584,696.34,694.99,0.28777392]
[1735518601520,1.07800584,696.3,694.99,0.28777392]
[1735518602824,1.07800584,696.29,694.99,0.28777392]
[1735518604021,1.07800584,696.23,694.99,0.28777392]
[1735518605127,1.07800584,696.19,694.99,0.28777392]
[1735518606128,1.07800584,696.15,695.09,1.07639236]
[1735518607628,1.07800584,696.12,695.09,1.07639236]
[1735518608521,1.36520948,696.37,695.04,1.07639236]
[1735518609527,1.36520948,696.37,695.05,0.28774908]
[1735518609728,0.28720364,696.37,695.05,0.28774908]
[1735518610229,0.2645091,696.36,695.05,0.28774908]
[1735518610628,1.07800584,696.34,695.05,0.28774908]
[1735518610830,0.2645091,696.33,695.05,0.28774908]
[1735518611627,1.07800584,696.25,695.05,0.28774908]
[1735518611930,0.26450945,696.24,695.05,0.28774908]
[1735518612230,0.2645147,696.23,695.05,0.28774908]
[1735518612433,1.07800584,696.25,695.05,0.28774908]
[1735518612633,1.07800584,696.18,695.08,1.07639236]
[1735518613724,1.07800584,696.15,695.05,0.28774908]
[1735518616332,1.07800584,696.16,695.05,0.28774908]
[1735518618552,1.07800584,696.19,695.05,0.28774908]
[1735518619840,1.07800584,696.25,695.05,0.28774908]
[1735518621044,1.07800584,696.26,695.05,0.28774908]
[1735518622143,1.07800584,696.27,695.05,0.28774908]
[1735518623443,0.2645448,696.26,695.05,0.28774908]
[1735518623742,1.07800584,696.27,695.05,0.28774908]
[1735518623939,1.07800584,696.24,695.05,0.28774908]
[1735518624139,0.26454376,696.23,695.05,0.28774908]
[1735518625043,1.07800584,696.17,695.05,0.28774908]
[1735518626338,1.07800584,696.27,695.05,0.28774908]
[1735518627344,0.28720364,696.37,695.05,0.28774908]
[1735518627540,0.26448494,696.36,695.05,0.28774908]
[1735518628247,1.07800584,696.34,695.05,0.28774908]
[1735518628446,0.26448494,696.33,695.05,0.28774908]
[1735518628840,1.07800584,696.34,695.05,0.28774908]
[1735518629042,0.26448945,696.33,695.05,0.28774908]
[1735518629945,1.07800584,696.32,695.05,0.28774908]
[1735518630141,0.26448945,696.31,695.05,0.28774908]
[1735518630541,1.07800584,696.32,695.05,6.59781155]
[1735518630747,1.07800584,696.32,695.05,0.28774908]
[1735518630947,1.07800584,696.31,695.08,1.07639236]
[1735518631847,0.28720364,696.37,695.2,1.07639236]
[1735518632952,0.28720364,696.37,695.25,1.07639236]
[1735518634254,0.28720364,696.37,695.2,3.52136378]
[1735518634255,0.28720364,696.37,695.22,1.07639236]
[1735518635248,0.28720364,696.37,695.05,0.28774908]
[1735518645863,0.28720364,696.37,695.07,1.07639236]
[1735518646064,0.28720364,696.37,695.08,0.28773666]
[1735518660774,0.28720364,696.37,695.11,1.07639236]
[1735518662473,0.28720364,696.37,695.16,1.07639236]
[1735518662777,0.28720364,696.37,695.17,0.28769941]
[1735518664776,0.28720364,696.37,695.2,1.07639236]
[1735518664970,0.28720364,696.37,695.21,0.28768285]
[1735518665678,0.28720364,696.37,695.28,1.07639236]
[1735518666776,0.28720364,696.37,695.32,1.07639236]
[1735518667880,0.28720364,696.37,695.21,1.36407521]
[1735518667881,0.28720364,696.37,695.38,1.07639236]
[1735518668883,0.28720364,696.37,695.36,1.07639236]
[1735518669482,0.28720364,696.37,695.21,0.28768285]
[1735518677584,0.26449873,696.36,695.21,0.28768285]
[1735518677984,0.28720364,696.37,695.21,0.28768285]
[1735518678388,0.26449739,696.36,695.21,0.28768285]
[1735518678688,0.28720364,696.37,695.21,0.28768285]
[1735518678890,0.26449756,696.36,695.21,0.28768285]
[1735518679089,0.28720364,696.37,695.21,0.28768285]
[1735518736934,1.07676335,696.85,695.21,0.28768285]
[1735518737135,0.28700993,696.84,695.21,0.28768285]
[1735518737737,0.2643884,696.83,695.21,0.28768285]
[1735518738133,0.28700993,696.84,695.21,0.28768285]
[1735518740536,0.2643478,696.83,695.21,0.28768285]
[1735518741334,0.26433516,696.82,695.21,0.28768285]
[1735518741540,0.28700993,696.84,695.21,0.28768285]
[1735518741740,0.26432553,696.83,695.21,0.28768285]
[1735518742536,0.28701816,696.82,695.21,0.28768285]
[1735518742741,0.26432553,696.81,695.21,0.28768285]
[1735518743245,0.2870264,696.8,695.21,0.28768285]
[1735518743436,0.26432553,696.79,695.21,0.28768285]
[1735518743641,0.28703464,696.78,695.21,0.28768285]
[1735518746741,0.28703464,696.78,695.21,3.79677711]
[1735518746940,0.28703464,696.78,695.21,6.58053602]
[1735518747246,0.28703464,696.78,695.22,6.29285317]
[1735518747441,0.28703464,696.78,695.23,4.62399319]
[1735518747647,0.28703464,696.78,695.24,1.84023428]
[1735518747842,0.28703464,696.78,695.21,0.28768285]
[1735518750544,0.26433037,696.77,695.21,0.28768285]
[1735518751147,0.28704288,696.76,695.21,0.28768285]
[1735518751347,0.26436267,696.75,695.21,0.28768285]
[1735518753350,0.28705112,696.74,695.21,0.28768285]
[1735518753550,0.26436267,696.73,695.21,0.28768285]
[1735518753746,0.26435748,696.72,695.21,0.28768285]
[1735518753945,0.28705112,696.74,695.21,0.28768285]
[1735518754145,0.26435444,696.73,695.21,0.28768285]
[1735518756049,0.28705112,696.74,695.21,0.28768285]
[1735518765557,0.28705112,696.74,695.21,1.35697849]
[1735518765757,0.2643526,696.73,695.21,1.35697849]
[1735518766257,0.26435904,696.72,695.21,1.35697849]
[1735518766550,0.26435904,696.71,695.21,1.35697849]
[1735518766757,0.26435904,696.7,695.3,1.06929564]
[1735518766957,0.26435904,696.69,695.3,1.06929564]
[1735518767257,0.26435904,696.68,695.3,1.06929564]
[1735518767457,0.26435904,696.67,695.3,1.06929564]
[1735518767656,0.26435904,696.66,695.37,1.06929564]
[1735518767857,0.26435904,696.65,695.37,1.06929564]
[1735518768056,0.26435904,696.64,695.37,1.06929564]
[1735518768257,0.26435904,696.63,695.37,1.06929564]
[1735518768458,1.07076244,696.67,695.35,1.06929564]
[1735518768658,0.26434255,696.66,695.35,1.06929564]
[1735518769756,0.26434255,696.66,695.39,1.06929564]
[1735518770057,0.26434255,696.65,695.39,1.06929564]
[1735518770253,1.07076244,696.68,695.4,0.28760425]
[1735518770958,0.28705112,696.74,695.48,1.06929564]
[1735518771158,0.26432362,696.73,695.48,1.06929564]
[1735518772061,0.26432362,696.73,695.46,1.06929564]
[1735518773165,1.07076244,696.7,695.41,1.06929564]
[1735518773361,0.26432362,696.69,695.41,1.06929564]
[1735518773561,1.07076244,696.7,695.41,1.06929564]
[1735518773761,0.26435156,696.69,695.41,1.06929564]
[1735518774956,1.07076244,696.68,695.4,1.35689989]
[1735518775163,0.26435156,696.67,695.4,1.35689989]
[1735518775562,1.07076244,696.68,695.4,1.35689989]
[1735518775762,0.2643825,696.67,695.4,1.35689989]
[1735518775962,1.07076244,696.72,695.4,0.28760425]
[1735518776659,0.28706348,696.71,695.4,0.28760425]
[1735518777558,0.26439836,696.7,695.4,0.28760425]
[1735518777765,0.28707172,696.69,695.4,0.28760425]
[1735518785871,0.26439451,696.68,695.4,0.28760425]
[1735518786072,1.07076244,696.67,695.4,0.28760425]
[1735518786272,0.26439451,696.66,695.4,0.28760425]
[1735518786770,0.2870882,696.65,695.4,0.28760425]
[1735518786970,0.26439451,696.64,695.4,0.28760425]
[1735518787171,1.07076244,696.61,695.4,0.28760425]
[1735518787365,0.26439451,696.6,695.4,0.28760425]
[1735518787770,1.07076244,696.61,695.4,0.28760425]
[1735518787972,0.26440492,696.6,695.4,0.28760425]
[1735518788472,1.07076244,696.58,695.4,0.28760425]
[1735518789568,0.55155835,696.57,695.4,0.28760425]
[1735518789772,0.2871253,696.56,695.4,0.28760425]
[1735518794575,0.26441911,696.55,695.4,0.28760425]
[1735518795177,0.2871253,696.56,695.4,0.28760425]
[1735518795378,0.26443571,696.55,695.4,0.28760425]
[1735518795780,0.28713354,696.54,695.4,0.28760425]
[1735518795978,0.26443571,696.53,695.4,0.28760425]
[1735518796175,0.28714179,696.52,695.4,0.28760425]
[1735518796381,0.26443571,696.51,695.4,0.28760425]
[1735518797379,1.33519815,696.51,695.4,0.28760425]
[1735518797579,0.26443571,696.5,695.4,0.28760425]
[1735518797879,0.2644478,696.49,695.4,0.28760425]
[1735518798080,1.07076244,696.51,695.4,0.28760425]
[1735518798279,1.07076244,696.51,695.13,1.06929564]
[1735518798478,0.28715003,696.5,695.13,1.06929564]
[1735518798781,1.35791247,696.5,695.11,1.06929564]
[1735518800080,0.28715003,696.5,694.87,1.06929564]
[1735518800780,0.28715003,696.5,694.88,0.28781947]
[1735518805185,0.26445825,696.49,694.88,0.28781947]
[1735518805386,0.28715828,696.48,694.88,0.28781947]
[1735518806085,0.26447004,696.47,694.88,0.28781947]
[1735518806286,0.28716652,696.46,694.95,1.06929564]
[1735518806679,0.28716652,696.46,694.96,0.28778634]
[1735518806882,0.26448445,696.45,694.96,0.28778634]
[1735518807087,0.28717477,696.44,694.96,0.28778634]
[1735518807388,0.26448445,696.43,694.96,0.28778634]
[1735518807688,0.55168736,696.42,694.96,0.28778634]
[1735518807889,0.26450434,696.41,694.96,0.28778634]
[1735518808082,0.55169148,696.41,694.96,0.28778634]
[1735518808287,0.26450434,696.4,694.96,0.28778634]
[1735518808487,0.28719539,696.39,694.96,0.28778634]
[1735518808688,0.26450434,696.38,695.01,1.06929564]
[1735518809491,0.28720364,696.37,695.02,1.06929564]
[1735518809691,0.26450434,696.36,695.02,1.06929564]
[1735518810191,0.26449663,696.35,695.02,1.06929564]
[1735518810390,0.26449663,696.34,695.01,1.06929564]
[1735518810589,0.26449663,696.33,695.01,1.06929564]
[1735518810788,0.28720364,696.37,695.01,1.06929564]
[1735518810986,0.26449185,696.36,695.01,1.06929564]
[1735518811492,0.26449185,696.36,694.96,0.28778634]
[1735518811493,0.26449185,696.36,694.99,1.06929564]
[1735518811992,0.28720364,696.37,694.99,1.06929564]
[1735518812593,0.28720364,696.37,694.96,0.28778634]
[1735518812794,0.26449433,696.36,694.96,0.28778634]
[1735518813095,0.28720364,696.37,694.96,0.28778634]
[1735518813995,0.26448879,696.36,694.96,0.28778634]
[1735518814794,0.55169655,696.36,694.96,0.28778634]
[1735518814994,0.26448879,696.35,694.96,0.28778634]
[1735518817693,0.28720776,696.36,694.96,0.28778634]
[1735518817891,0.26450523,696.35,694.96,0.28778634]
[1735518818293,0.28720776,696.36,694.96,0.28778634]
[1735518818598,0.26450694,696.35,694.96,0.28778634]
[1735518818793,0.28720776,696.36,694.96,0.28778634]
[1735518823002,0.26449394,696.35,694.96,0.28778634]
[1735518823201,0.28720776,696.36,694.96,0.28778634]
[1735518823602,0.26449486,696.35,694.96,0.28778634]
[1735518824502,0.28720776,696.36,694.96,0.28778634]
[1735518831703,0.28720776,696.36,694.98,1.06929564]
[1735518831909,0.28720776,696.36,694.99,0.28777392]
[1735518833806,1.07076244,696.32,695.03,1.06929564]
[1735518834905,1.07076244,696.28,694.99,0.28777392]
[1735518835910,0.28720776,696.36,694.99,0.28777392]
[1735518835911,1.07076244,696.3,694.99,0.28777392]
[1735518836207,1.35799495,696.3,694.99,0.28777392]
[1735518840008,0.28723251,696.3,694.99,1.35706956]
[1735518841010,1.35799495,696.3,694.99,0.28777392]
[1735518842217,0.28723251,696.3,695.02,1.06929564]
[1735518842910,1.35799495,696.3,695.11,1.06929564]
[1735518844013,1.07076244,696.27,695.07,1.06929564]
[1735518845010,1.35799495,696.3,695.13,1.06929564]
[1735518846114,0.28723251,696.3,695.07,1.06929564]
[1735518847012,0.28723251,696.3,695.06,1.06929564]
[1735518849619,0.28723251,696.3,695.14,1.06929564]
[1735518851317,1.07076244,696.44,695.14,1.06929564]
[1735518851717,1.07076244,696.54,695.33,1.06929564]
[1735518852813,1.07076244,696.64,695.28,1.06929564]
[1735518853215,0.26439009,696.63,695.28,1.06929564]
[1735518853617,0.26439009,696.63,695.14,3.52088001]
[1735518853618,0.26439009,696.63,695.24,1.06929564]
[1735518853817,1.07076244,696.68,695.24,1.06929564]
[1735518854019,0.26438133,696.67,695.25,0.2876663]
[1735518854318,0.26437925,696.66,695.25,0.2876663]
[1735518854614,0.26437925,696.65,695.25,0.2876663]
[1735518854816,1.07076244,696.71,695.25,0.2876663]
[1735518855017,0.55144219,696.7,695.25,0.2876663]
[1735518855217,0.26437459,696.69,695.25,0.2876663]
[1735518857220,0.2870676,696.7,695.25,0.2876663]
[1735518861622,0.26435686,696.69,695.25,0.2876663]
[1735518861817,0.26436427,696.68,695.25,0.2876663]
[1735518862021,0.2870676,696.7,695.25,0.2876663]
[1735518862221,0.26436259,696.69,695.25,0.2876663]
[1735518863717,0.2870676,696.7,695.25,0.2876663]
[1735518863919,0.26436539,696.69,695.25,0.2876663]
[1735518864118,0.2870676,696.7,695.25,0.2876663]
[1735518864119,0.26437093,696.68,695.25,0.2876663]
[1735518864320,0.26437519,696.67,695.25,0.2876663]
[1735518864520,0.26436091,696.66,695.25,0.2876663]
[1735518864716,0.26436091,696.65,695.25,0.2876663]
[1735518864926,0.2870676,696.7,695.25,0.2876663]
[1735518865224,0.2643646,696.69,695.25,0.2876663]
[1735518866621,0.2870676,696.7,695.25,0.2876663]
[1735518866824,0.26437168,696.69,695.25,0.2876663]
[1735518867226,0.26437168,696.69,695.25,3.80020118]
[1735518867432,0.26437168,696.69,695.26,2.77964757]
[1735518867628,0.26437168,696.69,695.27,3.51253488]
[1735518868123,0.26437168,696.69,695.28,2.77964757]
[1735518868327,0.26437168,696.69,695.29,3.51253488]
[1735518868530,0.26437168,696.69,695.3,2.77964757]
[1735518868829,0.26437168,696.69,695.31,3.51253488]
[1735518869222,0.26437168,696.69,695.32,3.06728491]
[1735518869427,0.26437168,696.69,695.33,3.51253488]
[1735518869628,0.26437168,696.69,695.34,0.28762907]
[1735518869829,0.26437168,696.69,695.34,3.06727664]
[1735518870029,0.26437168,696.69,695.35,1.84411532]
[1735518870230,0.26437168,696.69,695.34,0.28762907]
[1735518871726,0.26438322,696.68,695.34,0.28762907]
[1735518871925,0.55146318,696.67,695.34,0.28762907]
[1735518872129,0.26438322,696.66,695.34,0.28762907]
[1735518872826,0.2870882,696.65,695.34,0.28762907]
[1735518873025,0.26438322,696.64,695.34,0.28762907]
[1735518875430,0.28709645,696.63,695.34,0.28762907]
[1735518875629,0.26438322,696.62,695.34,0.28762907]
[1735518876532,0.28710469,696.61,695.34,0.28762907]
[1735518876730,0.26440747,696.6,695.34,0.28762907]
[1735518876929,0.28711293,696.59,695.34,0.28762907]
[1735518877227,0.26440747,696.58,695.34,0.28762907]
[1735518878732,0.28711293,696.59,695.34,0.28762907]
[1735518885333,0.28711293,696.59,695.4,1.06929564]
[1735518886337,0.28711293,696.59,695.43,1.06929564]
[1735518887337,0.28711293,696.59,695.41,1.06929564]
[1735518888738,0.28711293,696.59,695.4,1.06929564]
[1735518891839,0.28711293,696.59,695.39,1.06929564]
[1735518894242,0.28711293,696.59,695.34,0.28762907]
[1735518894243,0.28711293,696.59,695.36,1.06929564]
[1735518894743,0.28711293,696.59,695.36,1.35691644]
[1735518895540,0.28711293,696.59,695.46,1.06929564]
[1735518896938,0.28711293,696.59,695.49,1.06929564]
[1735518897649,0.28711293,696.59,695.5,1.06929564]
[1735518898650,0.28711293,696.59,695.45,1.06929564]
[1735518899648,0.28711293,696.59,695.47,1.06929564]
[1735518900652,0.28711293,696.59,695.44,1.06929564]
[1735518901151,0.28711293,696.59,695.44,1.35688335]
[1735518901649,0.28711293,696.59,695.44,0.28758771]
[1735518905748,1.07076244,696.99,695.44,0.28758771]
[1735518905954,0.26424124,696.98,695.44,0.28758771]
[1735518906455,1.07076244,696.99,695.44,0.28758771]
[1735518906657,1.07076244,697.13,695.53,1.06929564]
[1735518906955,0.55113378,697.12,695.53,1.06929564]
[1735518907155,0.26423913,697.11,695.54,0.28754636]
[1735518907451,1.07076244,697.1,695.57,1.06929564]
[1735518907650,0.26423913,697.09,695.57,1.06929564]
[1735518908148,1.07076244,697.1,695.57,1.06929564]
[1735518908349,0.26427295,697.09,695.57,1.06929564]
[1735518908656,0.26427295,697.09,695.54,0.28754636]
[1735518908855,0.26427295,697.08,695.54,0.28754636]
[1735518909056,0.26427295,697.07,695.54,0.28754636]
[1735518909249,0.26427295,697.06,695.54,0.28754636]
[1735518909451,1.07076244,696.99,695.54,0.28754636]
[1735518909651,0.26427295,696.98,695.54,0.28754636]
[1735518909850,0.55122522,696.98,695.54,0.28754636]
[1735518910057,0.26427295,696.97,695.54,0.28754636]
[1735518910352,0.28696051,696.96,695.54,0.28754636]
[1735518910557,0.26427295,696.95,695.54,0.28754636]
[1735518910858,0.55124887,696.94,695.54,0.28754636]
[1735518911052,0.26428013,696.93,695.54,0.28754636]
[1735518912360,0.28696874,696.94,695.54,0.28754636]
[1735518934670,0.26426706,696.93,695.54,0.28754636]
[1735518935565,0.26427339,696.92,695.54,0.28754636]
[1735518935767,0.26427339,696.91,695.54,0.28754636]
[1735518936068,0.26427339,696.9,695.63,1.06929564]
[1735518936368,0.26427339,696.89,695.63,1.06929564]
[1735518936665,0.26427339,696.88,695.63,1.06929564]
[1735518936867,0.28696874,696.94,695.63,1.06929564]
[1735518937362,0.28696874,696.94,695.54,1.356842]
[1735518937363,0.28696874,696.94,695.62,1.06929564]
[1735518938468,0.28696874,696.94,695.54,0.28754636]
[1735518939561,0.264312,696.93,695.54,0.28754636]
[1735518939765,0.26430803,696.92,695.54,0.28754636]
[1735518939970,0.2869811,696.91,695.54,0.28754636]
[1735518941170,0.26430518,696.9,695.54,0.28754636]
[1735518941768,0.28698933,696.89,695.54,0.28754636]
[1735518942068,0.26430518,696.88,695.54,0.28754636]
[1735518942269,0.28699757,696.87,695.54,0.28754636]
[1735518943069,0.26432176,696.86,695.54,0.28754636]
[1735518945267,0.26437881,696.85,695.54,0.28754636]
[1735518945569,0.26437881,696.84,695.54,0.28754636]
[1735518945770,0.26437881,696.83,695.54,0.28754636]
[1735518946070,0.26437881,696.82,695.54,0.28754636]
[1735518946369,0.26437881,696.81,695.54,0.28754636]
[1735518946570,0.26437881,696.8,695.54,0.28754636]
[1735518946770,0.26437881,696.79,695.54,0.28754636]
[1735518946971,0.26437881,696.78,694.98,1.06929564]
[1735518947171,0.28699757,696.87,694.98,1.06929564]
[1735518947172,0.26437881,696.77,694.99,0.28777392]
[1735518947371,0.26437881,696.76,694.99,0.28777392]
[1735518947574,0.28699757,696.87,694.99,0.28777392]
[1735518948075,0.26440539,696.86,694.99,0.28777392]
[1735518949575,1.07076244,696.74,694.99,0.28777392]
[1735518949767,0.26440539,696.73,694.99,0.28777392]
[1735518949968,1.07076244,696.74,694.99,0.28777392]
[1735518950171,0.26446348,696.73,694.99,0.28777392]
[1735518950977,0.26446348,696.72,694.99,0.28777392]
[1735518951171,0.26446348,696.71,694.99,0.28777392]
[1735518951374,0.55153108,696.7,694.99,0.28777392]
[1735518951577,0.2870676,696.7,694.99,0.28777392]
[1735518953374,0.26445378,696.69,694.99,0.28777392]
[1735518955373,0.26445501,696.68,694.99,0.28777392]
[1735518955580,0.55153497,696.67,694.99,0.28777392]
[1735518955881,0.26445501,696.66,694.99,0.28777392]
[1735518956076,0.2870882,696.65,694.99,0.28777392]
[1735518956280,0.26445501,696.64,694.99,0.28777392]